bitfinex-derivatives/quotes_BTCF0:USTF0_20250711
["timestamp","ask_amount","ask_price","bid_price","bid_amount"]
[1752254089265,0.94965533,117620.0,117610.0,0.279465]
[1752254089476,0.8885506,117620.0,117610.0,0.279465]
[1752254089867,0.94965533,117620.0,117610.0,0.279465]
[1752254090567,0.94965533,117620.0,117610.0,0.249265]
[1752254090770,1.45174599,117620.0,117610.0,0.249265]
[1752254091276,1.45174599,117620.0,117610.0,0.250265]
[1752254091567,0.98205533,117620.0,117610.0,0.251265]
[1752254091772,0.98205533,117620.0,117610.0,0.250265]
[1752254091773,0.98305533,117620.0,117610.0,0.250265]
[1752254091971,0.98305533,117620.0,117610.0,0.001]
[1752254092269,1.75244126,117620.0,117610.0,0.170995]
[1752254092473,1.75244126,117620.0,117610.0,0.001]
[1752254092675,2.17248926,117620.0,117610.0,0.001]
[1752254092976,0.250045,117610.0,117600.0,0.00170061]
[1752254093175,1.21925796,117610.0,117600.0,0.00170061]
[1752254093668,1.15816785,117610.0,117600.0,0.00170061]
[1752254094071,1.15850243,117610.0,117600.0,0.00170061]
[1752254094269,0.21956308,117590.0,117580.0,0.3343176]
[1752254094466,0.87190308,117590.0,117580.0,0.2918088]
[1752254094669,0.93550308,117590.0,117580.0,0.2918088]
[1752254095075,0.93550308,117590.0,117570.0,0.5092262]
[1752254095076,0.2500884,117580.0,117570.0,0.3977389]
[1752254095272,1.11187906,117580.0,117570.0,0.4108152]
[1752254095467,0.47215,117580.0,117570.0,0.4108152]
[1752254095667,0.2500884,117580.0,117570.0,0.4108152]
[1752254096072,0.2500884,117580.0,117570.0,0.3977389]
[1752254096477,0.08005,117580.0,117570.0,0.7585389]
[1752254096673,0.2500884,117580.0,117570.0,0.3977389]
[1752254097276,0.07808,117590.0,117570.0,0.5413562]
[1752254097475,0.01635186,117590.0,117580.0,0.6740088]
[1752254097667,0.2500599,117600.0,117590.0,0.2492943]
[1752254097868,0.2500599,117600.0,117590.0,0.3131943]
[1752254099279,0.08005,117600.0,117590.0,0.3131943]
[1752254100384,0.08105,117600.0,117590.0,0.3131943]
[1752254100977,0.03427,117600.0,117590.0,0.3131943]
[1752254101278,0.001,117600.0,117590.0,1.78858273]
[1752254102173,0.002,117610.0,117600.0,0.2492799]
[1752254102374,0.002,117610.0,117600.0,1.61066122]
[1752254102679,0.09432156,117630.0,117620.0,0.249251]
[1752254102982,0.09624899,117640.0,117630.0,0.2492366]
[1752254103180,0.09624899,117640.0,117630.0,0.6712366]
[1752254103576,0.11052055,117640.0,117630.0,0.6712366]
[1752254103775,0.11052055,117640.0,117630.0,1.14092726]
[1752254103977,0.06105156,117640.0,117630.0,1.79588643]
[1752254104283,0.06105156,117640.0,117630.0,1.79592643]
[1752254104482,0.06105156,117640.0,117630.0,1.86258458]
[1752254104881,0.06105156,117640.0,117630.0,1.79392643]
[1752254105083,0.06125156,117640.0,117630.0,1.15694151]
[1752254105278,0.06125156,117640.0,117630.0,1.78530151]
[1752254105477,0.06225156,117640.0,117630.0,0.68725085]
[1752254105679,0.06225156,117640.0,117630.0,1.31549085]
[1752254105680,0.09552156,117640.0,117630.0,1.31549085]
[1752254106083,0.09552156,117640.0,117630.0,1.78518151]
[1752254106084,0.06225156,117640.0,117630.0,1.78518151]
[1752254106581,0.06225156,117640.0,117630.0,1.79353969]
[1752254106784,0.0022,117640.0,117630.0,1.79353969]
[1752254108980,0.0022,117640.0,117630.0,1.86195886]
[1752254109181,0.10910544,117640.0,117630.0,1.86195886]
[1752254109383,0.10910544,117640.0,117630.0,1.39255504]
[1752254109581,0.10910544,117640.0,117630.0,1.8622457]
[1752254110081,0.10890544,117650.0,117640.0,0.1699521]
[1752254110280,0.10890544,117650.0,117640.0,1.14162276]
[1752254110882,0.10890544,117650.0,117640.0,1.44152276]
[1752254112189,0.003,117650.0,117640.0,1.44252276]
[1752254112485,0.03375,117650.0,117640.0,1.42936]
[1752254112692,0.72334836,117650.0,117640.0,1.2395921]
[1752254112892,0.2536577,117650.0,117640.0,1.2395921]
[1752254113590,0.36041427,117650.0,117640.0,0.9394921]
[1752254114292,0.2536577,117650.0,117640.0,0.9394921]
[1752254114683,0.36041992,117650.0,117640.0,0.9394921]
[1752254115292,0.19048222,117650.0,117640.0,1.3002921]
[1752254116391,0.35941992,117650.0,117640.0,0.6739321]
[1752254116691,0.35941992,117650.0,117640.0,0.9402121]
[1752254117090,0.2526577,117650.0,117640.0,0.9402121]
[1752254117885,0.03275,117650.0,117640.0,1.3010121]
[1752254118092,0.03275,117650.0,117640.0,1.77070276]
[1752254118494,0.10899515,117650.0,117640.0,1.77070276]
[1752254118992,0.002,117650.0,117640.0,1.14562276]
[1752254119195,0.07624515,117660.0,117650.0,0.2009177]
[1752254119397,0.07624515,117660.0,117650.0,1.14630836]
[1752254119787,0.10674321,117670.0,117660.0,0.2009033]
[1752254119987,0.10674321,117670.0,117660.0,1.78799771]
[1752254120386,0.10674321,117680.0,117670.0,0.2499888]
[1752254120587,0.35735761,117680.0,117670.0,1.3006288]
[1752254120984,0.82704827,117680.0,117670.0,0.8248488]
[1752254121194,0.78490506,117680.0,117670.0,0.8248488]
[1752254121396,1.14570506,117680.0,117670.0,0.84284286]
[1752254121795,1.25239904,117680.0,117670.0,0.84284286]
[1752254122497,1.14570506,117680.0,117670.0,0.84284286]
[1752254122692,0.78270379,117680.0,117670.0,0.84284286]
[1752254123390,0.78470379,117680.0,117670.0,0.84284286]
[1752254123597,0.6780144,117680.0,117670.0,0.84284286]
[1752254123897,0.6790144,117680.0,117670.0,0.84284286]
[1752254124896,0.6790144,117680.0,117670.0,0.89194286]
[1752254125397,0.25503382,117680.0,117670.0,0.89194286]
[1752254125696,0.19043382,117680.0,117670.0,1.28294286]
[1752254125897,0.10971382,117680.0,117670.0,1.78453352]
[1752254126197,0.10971382,117680.0,117670.0,1.79284391]
[1752254126392,0.10771382,117680.0,117670.0,1.79284391]
[1752254126588,0.10871382,117680.0,117670.0,1.79284391]
[1752254126792,0.10771382,117680.0,117670.0,1.79284391]
[1752254126997,0.10891382,117680.0,117670.0,1.79304391]
[1752254127697,0.0012,117680.0,117670.0,1.32335325]
[1752254127991,0.0012,117680.0,117670.0,1.79304391]
[1752254128396,0.10791382,117680.0,117670.0,1.79304391]
[1752254128797,0.07629129,117680.0,117670.0,2.09274391]
[1752254130099,0.07629129,117680.0,117670.0,2.09474391]
[1752254130599,0.07629129,117680.0,117670.0,2.59474391]
[1752254131396,0.06098531,117680.0,117670.0,2.59474391]
[1752254132502,0.06098531,117680.0,117670.0,2.57674985]
[1752254132701,0.06098531,117680.0,117670.0,2.59464176]
[1752254133000,1e-08,117690.0,117680.0,0.1698943]
[1752254133191,0.01599475,117710.0,117700.0,0.1698654]
[1752254133399,0.01599475,117710.0,117700.0,2.62241754]
[1752254133699,5e-08,117710.0,117700.0,2.68561754]
[1752254133897,0.20393793,117730.0,117720.0,0.1698365]
[1752254134102,0.23468793,117730.0,117720.0,2.31362486]
[1752254134297,0.23468793,117730.0,117720.0,2.20788836]
[1752254134497,0.23468793,117730.0,117720.0,2.37772486]
[1752254134995,0.40451003,117730.0,117720.0,1.9080342]
[1752254135206,0.40551003,117730.0,117720.0,1.8439342]
[1752254135398,0.78503276,117730.0,117720.0,1.8439342]
[1752254135702,0.3153421,117730.0,117720.0,1.8439342]
[1752254136095,0.14552,117730.0,117720.0,1.8439342]
[1752254136295,0.14452,117730.0,117720.0,1.8439342]
[1752254136495,0.11432,117730.0,117720.0,2.31362486]
[1752254136794,0.08272,117730.0,117720.0,2.37772486]
[1752254137301,0.2525421,117730.0,117720.0,1.9080342]
[1752254137696,0.2831421,117730.0,117720.0,1.9080342]
[1752254137898,1.14613276,117730.0,117720.0,0.1708365]
[1752254138797,1.14613276,117730.0,117720.0,0.001]
[1752254139096,1.21531086,117730.0,117720.0,0.001]
[1752254139301,1.32185064,117730.0,117720.0,0.001]
[1752254139996,0.2505354,117700.0,117690.0,0.2548055]
[1752254140194,1.08102606,117700.0,117690.0,0.2409901]
[1752254140407,1.22024055,117700.0,117690.0,0.2409901]
[1752254140609,1.22024055,117700.0,117680.0,0.53238935]
[1752254140610,0.2008998,117690.0,117680.0,0.53238935]
[1752254140795,0.78334046,117690.0,117680.0,0.17158935]
[1752254140994,1.85817707,117690.0,117680.0,0.17158935]
[1752254141195,1.85817707,117690.0,117680.0,0.00169945]
[1752254141394,2.27812107,117690.0,117680.0,0.00169945]
[1752254142005,0.3780077,117680.0,117670.0,0.1699055]
[1752254142205,1.60863285,117680.0,117670.0,0.1699055]
[1752254142406,1.77859285,117680.0,117670.0,0.1699055]
[1752254142999,1.11439625,117680.0,117670.0,0.1699055]
[1752254143200,1.05354899,117680.0,117670.0,0.1742255]
[1752254143709,1.52323965,117680.0,117670.0,0.1742255]
[1752254143907,1.52323965,117680.0,117670.0,0.1699055]
[1752254144209,1.05354899,117680.0,117670.0,0.1699055]
[1752254144609,1.05354899,117680.0,117670.0,0.1742255]
[1752254145204,1.05354899,117680.0,117670.0,0.1699055]
[1752254145605,1.52323965,117680.0,117670.0,0.1699055]
[1752254145800,1.88423965,117680.0,117670.0,0.0002]
[1752254145999,0.2009435,117660.0,117650.0,0.27286724]
[1752254146203,0.73666189,117660.0,117650.0,0.27286724]
[1752254146408,0.33127123,117660.0,117650.0,0.27286724]
[1752254146607,0.69207123,117660.0,117650.0,0.27286724]
[1752254147412,0.69207123,117660.0,117650.0,0.27750724]
[1752254147609,0.33127123,117660.0,117650.0,0.64130724]
[1752254148011,0.09704773,117660.0,117650.0,0.64130724]
[1752254148211,0.09704773,117660.0,117650.0,0.70890724]
[1752254148615,0.26697123,117660.0,117650.0,0.70890724]
[1752254150011,0.09704773,117660.0,117650.0,0.70890724]
[1752254150717,0.26697123,117660.0,117650.0,0.70890724]
[1752254151616,0.26697123,117660.0,117650.0,0.30562304]
[1752254151812,0.80036189,117660.0,117650.0,0.00964]
[1752254152111,1.16116189,117660.0,117650.0,0.005]
[1752254152610,1.16116189,117660.0,117650.0,0.1749379]
[1752254153014,1.23727638,117660.0,117650.0,0.1749379]
[1752254153316,1.23727638,117660.0,117650.0,0.1719379]
[1752254153810,1.23727638,117660.0,117650.0,0.002]
[1752254154017,1.23727638,117660.0,117650.0,0.1719379]
[1752254154415,1.23727638,117660.0,117650.0,0.1699379]
[1752254154715,1.23727638,117660.0,117650.0,0.1709379]
[1752254154916,1.23727638,117660.0,117650.0,0.001]
[1752254155117,1.23727638,117660.0,117650.0,0.1709379]
[1752254155311,1.23727638,117660.0,117650.0,0.1699379]
[1752254155510,1.23727638,117660.0,117650.0,0.1745779]
[1752254155511,0.85634222,117660.0,117650.0,0.1745779]
[1752254155809,0.17416222,117660.0,117650.0,1.00506856]
[1752254156111,0.01737773,117660.0,117650.0,1.08726993]
[1752254157011,0.06702773,117660.0,117650.0,1.08726993]
[1752254157216,0.05065,117660.0,117650.0,1.08726993]
[1752254158615,0.12676449,117660.0,117650.0,1.08726993]
[1752254159417,0.29668789,117660.0,117650.0,1.08726993]
[1752254160414,0.32770789,117660.0,117650.0,0.44474137]
[1752254160615,1.49554532,117660.0,117650.0,0.01780137]
[1752254160912,0.2506075,117650.0,117640.0,0.00170003]
[1752254161111,0.78539816,117650.0,117640.0,0.00170003]
[1752254161510,1.14619816,117650.0,117640.0,0.00170003]
[1752254161715,1.14619816,117650.0,117640.0,0.17165193]
[1752254162111,1.14619816,117650.0,117640.0,0.00170003]
[1752254162419,1.14619816,117650.0,117640.0,0.17165193]
[1752254162717,1.14619816,117650.0,117640.0,0.00170003]
[1752254162907,1.14619816,117650.0,117640.0,0.00190003]
[1752254162908,1.22255625,117650.0,117640.0,0.00190003]
[1752254164016,1.25294245,117650.0,117640.0,0.00190003]
[1752254165113,1.25294245,117650.0,117640.0,0.17185193]
[1752254165917,1.2688217,117650.0,117640.0,0.17185193]
[1752254167415,1.34971104,117650.0,117640.0,0.20759193]
[1752254167606,1.8194017,117650.0,117640.0,0.23455193]
[1752254167814,1.8526017,117650.0,117640.0,0.23455193]
[1752254168314,1.38291104,117650.0,117640.0,0.23455193]
[1752254168514,1.45913535,117650.0,117640.0,0.23455193]
[1752254168917,1.35259106,117650.0,117640.0,0.23455193]
[1752254169317,0.34296048,117650.0,117640.0,0.59999193]
[1752254169615,0.26673617,117650.0,117640.0,1.06968259]
[1752254170114,0.26673617,117650.0,117640.0,0.23919193]
[1752254170515,0.6116075,117650.0,117640.0,0.23919193]
[1752254170714,0.2508075,117650.0,117640.0,0.23919193]
[1752254171618,0.26717906,117650.0,117640.0,0.23919193]
[1752254171818,0.34340337,117650.0,117640.0,0.23919193]
[1752254172214,1.17389403,117650.0,117640.0,0.23455193]
[1752254172410,1.17389403,117650.0,117640.0,0.20295193]
[1752254172616,1.23659403,117650.0,117640.0,0.17185193]
[1752254173012,1.16036972,117650.0,117640.0,0.00190003]
[1752254173217,1.26691401,117650.0,117640.0,0.00190003]
[1752254173521,1.26691401,117650.0,117640.0,0.17185193]
[1752254174317,1.26248763,117650.0,117640.0,0.00190003]
[1752254174517,1.15594334,117650.0,117640.0,0.00190003]
[1752254174914,1.15594334,117650.0,117640.0,0.17185193]
[1752254175418,1.15594334,117650.0,117640.0,0.00190003]
[1752254176220,1.15594334,117650.0,117640.0,0.17185193]
[1752254176921,1.23224846,117650.0,117640.0,0.17185193]
[1752254177122,1.23224846,117650.0,117640.0,0.00190003]
[1752254178020,1.23224846,117650.0,117640.0,0.17185193]
[1752254178522,1.23224846,117650.0,117640.0,0.00190003]
[1752254179117,0.87144846,117650.0,117640.0,0.17185193]
[1752254179317,1.23224846,117650.0,117640.0,0.00190003]
[1752254180220,1.23224846,117650.0,117640.0,0.17185193]
[1752254181023,1.26248763,117650.0,117640.0,0.00190003]
[1752254182318,1.26248763,117650.0,117640.0,0.17185193]
[1752254182525,1.26258833,117650.0,117640.0,0.17185193]
[1752254183130,1.26258833,117650.0,117640.0,0.00190003]
[1752254183627,1.26258833,117650.0,117640.0,0.17185193]
[1752254184126,1.26258833,117650.0,117640.0,0.00190003]
[1752254184328,1.26258833,117650.0,117640.0,0.17185193]
[1752254185722,1.40605767,117650.0,117640.0,0.17185193]
[1752254185924,1.26258833,117650.0,117640.0,0.17185193]
[1752254186128,1.26258833,117650.0,117640.0,0.21389193]
[1752254186129,0.96619179,117650.0,117640.0,0.21389193]
[1752254186317,0.96619179,117650.0,117640.0,0.24429193]
[1752254186522,0.8596475,117650.0,117640.0,0.24429193]
[1752254186726,0.87592428,117650.0,117640.0,0.24429193]
[1752254187024,0.87584428,117650.0,117640.0,0.24429193]
[1752254187426,1.70633494,117650.0,117640.0,0.24429193]
[1752254187730,1.81287923,117650.0,117640.0,0.24429193]
[1752254188129,1.79660245,117650.0,117640.0,0.24429193]
[1752254188324,0.73010395,117650.0,117640.0,0.06330003]
[1752254188628,0.98194395,117650.0,117640.0,0.24429193]
[1752254188925,0.36930395,117650.0,117640.0,0.24429193]
[1752254189125,0.26275966,117650.0,117640.0,1.08168259]
[1752254189327,0.33920508,117650.0,117640.0,1.08168259]
[1752254189522,0.33920508,117650.0,117640.0,0.61199193]
[1752254190025,0.33920508,117650.0,117640.0,0.24429193]
[1752254191223,0.26275966,117650.0,117640.0,0.24429193]
[1752254191628,0.33921228,117650.0,117640.0,0.24429193]
[1752254192325,0.2468075,117650.0,117640.0,0.24429193]
[1752254194929,0.2468075,117650.0,117640.0,0.61199193]
[1752254196231,0.2468075,117650.0,117640.0,0.24429193]
[1752254196734,0.35335179,117650.0,117640.0,0.24429193]
[1752254197527,1.18384245,117650.0,117640.0,0.24429193]
[1752254198242,1.18384245,117650.0,117640.0,0.23325193]
[1752254198533,1.18384245,117650.0,117640.0,0.24429193]
[1752254198733,1.07729816,117650.0,117640.0,0.24429193]
[1752254199432,0.2470519,117640.0,117630.0,0.2974408]
[1752254199633,1.50540425,117640.0,117630.0,0.2974408]
[1752254200032,1.50540425,117640.0,117630.0,0.2549493]
[1752254200732,1.50540425,117640.0,117630.0,0.2559493]
[1752254200926,1.86620425,117640.0,117630.0,0.2579493]
[1752254201136,1.00349359,117640.0,117630.0,0.6297893]
[1752254201634,0.0771,117640.0,117630.0,1.10637996]
[1752254201935,0.2470519,117640.0,117630.0,1.10637996]
[1752254202438,0.2470519,117640.0,117630.0,1.16907996]
[1752254202935,0.2470519,117640.0,117630.0,1.78631996]
[1752254203237,0.15356804,117640.0,117630.0,1.78631996]
[1752254203438,0.0771,117640.0,117630.0,1.78631996]
[1752254203637,0.2470519,117640.0,117630.0,1.78631996]
[1752254204231,0.0771,117640.0,117630.0,1.3166293]
[1752254204436,0.2470519,117640.0,117630.0,1.78631996]
[1752254204938,0.2470519,117640.0,117630.0,1.3166293]
[1752254205637,0.32351838,117640.0,117630.0,1.3166293]
[1752254206239,0.32351838,117640.0,117630.0,0.9489293]
[1752254206533,0.2470519,117640.0,117630.0,0.9489293]
[1752254208241,0.2470519,117640.0,117630.0,0.3316893]
[1752254208734,0.35411359,117640.0,117630.0,0.3316893]
[1752254209134,0.35411359,117640.0,117630.0,0.9471693]
[1752254209937,0.35401359,117640.0,117630.0,0.9471693]
[1752254210441,0.82370425,117640.0,117630.0,0.9471693]
[1752254210645,0.35401359,117640.0,117630.0,0.9471693]
[1752254210834,0.38571359,117640.0,117630.0,0.9471693]
[1752254211033,0.38571359,117640.0,117630.0,0.3316893]
[1752254211641,0.2786519,117640.0,117630.0,0.3316893]
[1752254212936,0.3105519,117640.0,117630.0,0.2689893]
[1752254213133,0.3105519,117640.0,117630.0,0.2579493]
[1752254213134,0.78024256,117640.0,117630.0,0.2579493]
[1752254213635,0.3105519,117640.0,117630.0,0.2579493]
[1752254213833,0.3105519,117640.0,117630.0,0.2691493]
[1752254215040,0.3105519,117640.0,117630.0,0.19681385]
[1752254215242,0.3105519,117640.0,117630.0,0.23930535]
[1752254216539,0.78024256,117640.0,117630.0,0.23930535]
[1752254216742,0.78044256,117640.0,117630.0,0.23950535]
[1752254218442,0.88753518,117640.0,117630.0,0.23950535]
[1752254219944,0.88753518,117640.0,117630.0,0.22830535]
[1752254221746,0.78044256,117640.0,117630.0,0.22830535]
[1752254221943,0.88753496,117640.0,117630.0,0.22830535]
[1752254222144,1.24833496,117640.0,117630.0,0.22830535]
[1752254222343,1.14124256,117640.0,117630.0,0.22830535]
[1752254222848,1.07247443,117640.0,117630.0,0.22830535]
[1752254223048,0.71167443,117640.0,117630.0,0.22830535]
[1752254223243,0.0772,117640.0,117630.0,1.00122788]
[1752254223448,0.2471519,117640.0,117630.0,1.06962788]
[1752254227945,0.2471519,117640.0,117630.0,0.66870535]
[1752254228147,0.2471519,117640.0,117630.0,1.06962788]
[1752254228553,0.3542447,117640.0,117630.0,1.03892788]
[1752254229654,0.3542447,117640.0,117630.0,0.63800535]
[1752254229862,0.3542447,117640.0,117630.0,1.03892788]
[1752254230050,0.75516723,117640.0,117630.0,0.27020535]
[1752254230353,0.78566723,117640.0,117630.0,0.23950535]
[1752254230554,0.78566723,117640.0,117630.0,0.60030535]
[1752254231354,1.14646723,117640.0,117630.0,0.23950535]
[1752254231652,0.7455447,117640.0,117630.0,0.23950535]
[1752254231953,0.3847447,117640.0,117630.0,0.23950535]
[1752254232153,1.14646723,117640.0,117630.0,0.14332235]
[1752254232352,1.44029696,117640.0,117630.0,0.0032]
[1752254232652,1.54741624,117640.0,117630.0,0.0032]
[1752254234055,1.54741624,117640.0,117630.0,0.1731663]
[1752254234256,1.44029696,117640.0,117630.0,0.1731663]
[1752254234454,1.44029696,117640.0,117630.0,0.1701663]
[1752254234655,1.44129696,117640.0,117630.0,0.1701663]
[1752254234855,1.04037443,117640.0,117630.0,0.1701663]
[1752254235456,1.65317443,117640.0,117630.0,0.1701663]
[1752254236758,0.6394519,117640.0,117630.0,0.1701663]
[1752254236951,0.6394519,117640.0,117630.0,0.16754328]
[1752254236952,0.8912519,117640.0,117630.0,0.16754328]
[1752254237355,1.65297443,117640.0,117630.0,0.16754328]
[1752254237555,1.29217443,117640.0,117630.0,0.15634328]
[1752254237857,1.65297443,117640.0,117630.0,0.15634328]
[1752254238254,1.2520519,117640.0,117630.0,0.15634328]
[1752254238454,1.80494236,117640.0,117630.0,0.15634328]
[1752254239058,1.81594236,117640.0,117630.0,0.15634328]
[1752254239259,1.66397443,117640.0,117630.0,0.15634328]
[1752254239957,1.41023629,117640.0,117630.0,0.15644328]
[1752254240155,1.77103629,117640.0,117630.0,0.15644328]
[1752254240348,1.41023629,117640.0,117630.0,0.15644328]
[1752254241758,1.15823629,117640.0,117630.0,0.15644328]
[1752254242156,1.76979629,117640.0,117630.0,0.15644328]
[1752254242759,0.22656186,117640.0,117630.0,0.16764328]
[1752254243054,0.2589519,117640.0,117630.0,0.58218883]
[1752254243253,0.2589519,117640.0,117630.0,0.62098883]
[1752254243452,0.19604195,117640.0,117630.0,0.99970131]
[1752254245059,0.19604195,117640.0,117630.0,1.0684025]
[1752254245859,0.089,117640.0,117630.0,1.0684025]
[1752254247362,0.2589519,117640.0,117630.0,1.0684025]
[1752254247770,0.089,117640.0,117630.0,1.0684025]
[1752254248066,0.089,117640.0,117630.0,1.05049002]
[1752254248260,0.089,117640.0,117630.0,1.068164]
[1752254250657,0.16545909,117640.0,117630.0,1.068164]
[1752254250857,0.089,117640.0,117630.0,0.59854028]
[1752254251063,0.089,117640.0,117630.0,1.068164]
[1752254251263,0.012,117640.0,117630.0,1.068164]
[1752254251471,0.005,117640.0,117630.0,1.48818]
[1752254251761,0.11202982,117640.0,117630.0,1.48818]
[1752254252760,0.11202982,117640.0,117630.0,1.98818]
[1752254253168,0.11202982,117640.0,117630.0,1.73818]
[1752254253662,0.005,117640.0,117630.0,1.73818]
[1752254253867,0.0052,117640.0,117630.0,1.73938]
[1752254254063,0.0052,117640.0,117630.0,1.74038]
[1752254254767,0.0052,117640.0,117630.0,1.27075628]
[1752254255169,0.0052,117640.0,117630.0,1.74038]
[1752254255465,0.11222982,117640.0,117630.0,1.74038]
[1752254256157,0.0052,117640.0,117630.0,1.74038]
[1752254257870,0.0052,117640.0,117630.0,2.3529]
[1752254258764,0.08163897,117640.0,117630.0,2.3529]
[1752254261769,0.08163897,117640.0,117630.0,2.6528]
[1752254262669,0.0052,117640.0,117630.0,2.6528]
[1752254263668,0.0052,117640.0,117630.0,2.482784]
[1752254264865,0.0052,117640.0,117630.0,2.413813]
[1752254265370,0.0052,117640.0,117630.0,2.98448172]
[1752254266369,0.0052,117640.0,117630.0,2.583829]
[1752254266564,0.0052,117640.0,117630.0,2.43994017]
[1752254266565,0.08543,117640.0,117630.0,2.43994017]
[1752254266771,0.08543,117640.0,117630.0,2.03928745]
[1752254266964,0.08543,117640.0,117630.0,2.43994017]
[1752254267359,0.08543,117640.0,117630.0,2.413813]
[1752254268667,0.08543,117640.0,117630.0,1.99828963]
[1752254268865,0.11783,117640.0,117630.0,1.97216028]
[1752254269072,0.2877819,117640.0,117630.0,1.97216028]
[1752254269274,0.68843462,117640.0,117630.0,0.50104028]
[1752254269574,1.04923462,117640.0,117630.0,0.48984028]
[1752254269762,0.47863,117640.0,117630.0,0.48984028]
[1752254269966,0.36422077,117640.0,117630.0,1.251293]
[1752254270173,0.19426897,117640.0,117630.0,1.251293]
[1752254270971,0.36422077,117640.0,117630.0,1.251293]
[1752254271274,0.72502077,117640.0,117630.0,1.10016028]
[1752254271473,1.12567349,117640.0,117630.0,0.48984028]
[1752254271673,1.12567349,117640.0,117630.0,1.10016028]
[1752254273575,1.12567349,117640.0,117630.0,0.48984028]
[1752254273772,1.12567349,117640.0,117630.0,0.18994028]
[1752254275173,1.12567349,117640.0,117630.0,0.0023]
[1752254275369,1.52632621,117640.0,117630.0,0.1722663]
[1752254275573,1.04923452,117640.0,117630.0,0.1722663]
[1752254275968,1.44988724,117640.0,117630.0,0.0023]
[1752254276175,1.04923452,117640.0,117630.0,0.0023]
[1752254276676,1.44988724,117640.0,117630.0,0.0023]
[1752254276978,1.52632621,117640.0,117630.0,0.0023]
[1752254277473,1.94634221,117640.0,117610.0,0.3608]
[1752254277675,1.94634221,117640.0,117600.0,0.00170061]
[1752254277676,0.2032451,117610.0,117600.0,0.00170061]
[1752254277975,1.79710182,117610.0,117600.0,0.00170061]
[1752254278181,1.83010182,117610.0,117600.0,0.17171021]
[1752254278374,1.83006182,117610.0,117600.0,0.17171021]
[1752254278773,1.89951654,117610.0,117600.0,0.17171021]
[1752254278972,1.4294491,117610.0,117600.0,0.17171021]
[1752254279172,1.89955654,117610.0,117600.0,0.17171021]
[1752254280377,1.89955654,117610.0,117600.0,0.17371021]
[1752254280582,1.89955654,117610.0,117600.0,0.19147964]
[1752254280881,1.7972749,117610.0,117600.0,0.18947964]
[1752254281082,1.7982749,117610.0,117600.0,0.17171021]
[1752254281280,1.85938641,117610.0,117600.0,0.17171021]
[1752254281479,1.7982749,117610.0,117600.0,0.17171021]
[1752254281781,1.80660112,117610.0,117600.0,0.17171021]
[1752254282179,1.79993027,117610.0,117600.0,0.17171021]
[1752254282379,1.73881876,117610.0,117600.0,0.17171021]
[1752254285081,1.73881876,117610.0,117600.0,0.00170061]
[1752254285281,1.73881876,117610.0,117600.0,0.17171021]
[1752254286488,1.74081876,117610.0,117600.0,0.17171021]
[1752254287489,1.74081876,117610.0,117600.0,0.00170061]
[1752254287694,0.250254,117590.0,117580.0,0.3227446]
[1752254287894,0.250254,117590.0,117570.0,0.1700425]
[1752254287895,0.2502685,117580.0,117570.0,0.1700425]
[1752254288192,0.75767594,117580.0,117570.0,0.19559194]
[1752254288382,0.2875685,117580.0,117570.0,0.19559194]
[1752254289291,0.2875685,117580.0,117570.0,0.1764425]
[1752254289689,0.2875685,117580.0,117570.0,0.5372425]
[1752254289890,0.2875685,117580.0,117570.0,0.5728425]
[1752254290491,0.2875685,117580.0,117570.0,0.6405991]
[1752254291288,0.2875685,117580.0,117570.0,0.6395991]
[1752254291892,0.2552685,117580.0,117570.0,0.6395991]
[1752254292297,0.2859685,117580.0,117570.0,0.6395991]
[1752254292595,0.2859685,117580.0,117570.0,0.6079991]
[1752254293291,1.11687594,117580.0,117570.0,0.003]
[1752254293594,0.75607594,117580.0,117570.0,0.173053]
[1752254295293,0.75607594,117580.0,117570.0,0.172053]
[1752254295495,0.75627594,117580.0,117570.0,0.172253]
[1752254295794,0.83271491,117580.0,117570.0,0.171253]
[1752254295996,0.16186897,117580.0,117570.0,0.538453]
[1752254296195,0.33190747,117580.0,117570.0,0.570253]
[1752254296499,0.2554685,117580.0,117570.0,0.570253]
[1752254297002,0.2554685,117580.0,117570.0,0.209453]
[1752254298198,0.2554685,117580.0,117570.0,0.203053]
[1752254298403,0.72557594,117580.0,117570.0,0.171253]
[1752254298701,0.83211491,117580.0,117570.0,0.171253]
[1752254299098,0.36200747,117580.0,117570.0,0.171253]
[1752254300699,0.66207641,117580.0,117570.0,0.177653]
[1752254300901,0.94234747,117580.0,117570.0,0.570553]
[1752254301097,0.33190747,117580.0,117570.0,0.570553]
[1752254301305,0.16186897,117580.0,117570.0,1.04466044]
[1752254301604,0.2554685,117580.0,117570.0,1.795433]
[1752254302001,0.2554685,117580.0,117570.0,1.791433]
[1752254302898,0.2554685,117580.0,117570.0,1.430633]
[1752254303403,0.80201491,117580.0,117570.0,1.430633]
[1752254303807,0.80201491,117580.0,117570.0,1.791433]
[1752254304102,0.33190747,117580.0,117570.0,1.791433]
[1752254304405,0.33190747,117580.0,117570.0,1.430633]
[1752254304809,0.39280004,117580.0,117570.0,1.430633]
[1752254305002,0.78646851,117580.0,117570.0,1.430633]
[1752254305203,0.77440789,117580.0,117570.0,0.171253]
[1752254306308,0.77440789,117580.0,117570.0,0.0012]
[1752254306610,1.24222245,117580.0,117570.0,0.0012]
[1752254308705,1.21120644,117580.0,117570.0,0.171253]
[1752254309105,1.21120644,117580.0,117570.0,0.0012]
[1752254309807,1.21120644,117580.0,117570.0,0.171253]
[1752254310502,1.13508368,117580.0,117570.0,0.171253]
[1752254311209,1.21120644,117580.0,117570.0,0.0012]
[1752254311611,1.82156644,117580.0,117570.0,0.0012]
[1752254314303,0.248553,117570.0,117560.0,0.00180119]
[1752254314608,1.1785679,117570.0,117560.0,0.00180119]
[1752254315013,1.11766044,117570.0,117560.0,0.00180119]
[1752254315406,0.2024919,117550.0,117540.0,0.6892542]
[1752254315606,0.74002518,117550.0,117540.0,0.6892542]
[1752254315811,0.77322518,117550.0,117540.0,0.6892542]
[1752254316409,0.30311774,117550.0,117540.0,0.6892542]
[1752254316907,0.30311774,117550.0,117540.0,0.6922542]
[1752254317112,0.30311774,117550.0,117540.0,0.7034542]
[1752254317308,0.77322518,117550.0,117540.0,0.003]
[1752254317511,0.78163097,117550.0,117540.0,0.003]
[1752254317808,1.14243097,117550.0,117540.0,0.003]
[1752254318011,0.03241,117540.0,117520.0,0.33200087]
[1752254318210,0.2536108,117530.0,117520.0,0.34320087]
[1752254319216,0.2536108,117530.0,117520.0,0.70400087]
[1752254319407,0.26952709,117530.0,117520.0,0.70400087]
[1752254320207,0.06700629,117530.0,117520.0,1.19169531]
[1752254320810,0.02091629,117530.0,117520.0,1.19269531]
[1752254321005,0.02091629,117530.0,117520.0,1.19469531]
[1752254322016,0.02091629,117530.0,117520.0,1.7631385]
[1752254322413,0.01391629,117530.0,117520.0,1.7631385]
[1752254323912,0.01391629,117530.0,117520.0,2.1833145]
[1752254324210,0.06297584,117550.0,117540.0,0.1700964]